[Event "HUN-ch U8-U18 2019"]
[Site "Balatonlelle"]
[Date "2019.06.22"]
[Round "2.7"]
[White "Geher, Koppany"]
[Black "Virag, Balint"]
[Result "1-0"]
[ECO "C80"]
[WhiteElo "2089"]
[BlackElo "2173"]
[Annotator "NA"]
[PlyCount "85"]
[EventDate "2019.06.21"]
[EventType "swiss"]
[EventCountry "HUN"]
[SourceTitle "playchess.com"]
[Source "ChessBase"]
[SourceQuality "1"]
[TimeControl "40/5400+30:1800+30"]

1. e4 {[%emt 0:00:02]} e5 {[%emt 0:00:50]} 2. Nf3 {[%emt 0:00:06]} Nc6 {[%emt 0:00:14]} 3. Bb5 {[%emt 0:00:08]} a6 {[%emt 0:00:27]} 4. Ba4 {[%emt 0:00:05]} Nf6 {[%emt 0:00:22]} 5. O-O {[%emt 0:00:34]} Nxe4 {[%emt 0:00:28]} 6. d4 {[%emt 0:00:18]} b5 {[%emt 0:00:27]} 7. Bb3 {[%emt 0:00:08]} d5 {[%emt 0:00:24]} 8. dxe5 {[%emt 0:00:13]} Be6 {[%emt 0:00:20]} 9. Nbd2 {[%emt 0:00:46]} Nc5 {[%emt 0:00:28]} 10. c3 {[%emt 0:00:26]} Be7 {[%emt 0:00:32]} 11. Bc2 {[%emt 0:00:42]} d4 {[%emt 0:05:05]} 12. Nb3 {[%emt 0:01:43]} d3 {[%emt 0:02:20]} 13. Nxc5 {[%emt 0:00:30]} dxc2 {[%emt 0:00:27]} 14. Qxd8+ {[%emt 0:00:08]} Rxd8 {[%emt 0:00:27]} 15. Nxe6 {[%emt 0:00:06]} fxe6 {[%emt 0:00:18]} 16. Be3 {[%emt 0:00:46]} Rd5 {[%emt 0:01:34]} 17. Rfc1 {[%emt 0:00:29]} Nxe5 {[%emt 0:00:37]} 18. Nxe5 {[%emt 0:00:13]} Rxe5 {[%emt 0:00:07]} 19. Bd4 {[%emt 0:02:44]} Rg5 {[%emt 0:03:17]} 20. Rxc2 {[%emt 0:00:09]} Kf7 {[%emt 0:02:39]} 21. Be3 {[%emt 0:01:23]} Rd5 {[%emt 0:01:27]} 22. c4 {[%emt 0:02:30]} bxc4 {[%emt 0:02:39]} 23. Rxc4 {[%emt 0:00:25]} Bd6 {[%emt 0:04:41]} 24. g3 {[%emt 0:08:36]} Ke7 {[%emt 0:01:41]} 25. Rac1 {[%emt 0:03:53]} Rb8 {[%emt 0:02:01]} 26. b3 {[%emt 0:00:34]} Kd7 {[%emt 0:01:01]} 27. Kf1 {[%emt 0:05:36]} g6 {[%emt 0:04:09]} 28. Ke2 {[%emt 0:00:45]} Rb4 {[%emt 0:07:53]} 29. Rxb4 {[%emt 0:05:59]} Bxb4 {[%emt 0:00:11]} 30. Rc4 {[%emt 0:00:22]} a5 {[%emt 0:01:56]} 31. h4 {[%emt 0:15:55]} Kd6 {[%emt 0:04:45]} 32. Bf4+ {[%emt 0:10:06]} e5 {[%emt 0:01:10]} 33. Bh6 {[%emt 0:02:52]} Rd4 {[%emt 0:06:57]} 34. Rc2 {[%emt 0:13:58]} c6 {[%emt 0:00:41]} 35. a3 {[%emt 0:02:43]} Kd5 {[%emt 0:10:49]} 36. axb4 {[%emt 0:00:16]} Rxb4 {[%emt 0:01:18]} 37. Rc3 {[%emt 0:01:34]} a4 {[%emt 0:00:46]} 38. Rd3+ {[%emt 0:07:31]} Ke6 {[%emt 0:03:19]} 39. bxa4 {[%emt 0:00:18]} Rxa4 {[%emt 0:00:08]} 40. Rd8 {[%emt 0:00:00]} Ra2+ {[%emt 0:00:00]} 41. Kf1 {[%emt 0:03:32]} Ra1+ {[%emt 0:03:16]} 42. Kg2 {[%emt 0:00:07]} c5 {[%emt 0:01:05]} 43. Re8+ {[%emt 0:01:38]} 1-0

[Event "HUN-ch U8-U18 2019"]
[Site "Balatonlelle"]
[Date "2019.06.22"]
[Round "2.8"]
[White "Dibusz, Domonkos"]
[Black "Leszko, Bence"]
[Result "1-0"]
[ECO "B33"]
[WhiteElo "2067"]
[BlackElo "2135"]
[Annotator "NA"]
[PlyCount "59"]
[EventDate "2019.06.21"]
[EventType "swiss"]
[EventCountry "HUN"]
[SourceTitle "playchess.com"]
[Source "ChessBase"]
[SourceQuality "1"]
[TimeControl "40/5400+30:1800+30"]

1. e4 {[%emt 0:00:03]} c5 {[%emt 0:01:31]} 2. Nf3 {[%emt 0:00:17]} Nc6 {[%emt 0:00:05]} 3. d4 {[%emt 0:00:05]} cxd4 {[%emt 0:00:02]} 4. Nxd4 {[%emt 0:00:10]} Nf6 {[%emt 0:00:04]} 5. Nc3 {[%emt 0:00:19]} e5 {[%emt 0:00:06]} 6. Ndb5 {[%emt 0:01:26]} d6 {[%emt 0:00:05]} 7. Bg5 {[%emt 0:01:06]} a6 {[%emt 0:00:17]} 8. Na3 {[%emt 0:00:31]} b5 {[%emt 0:00:05]} 9. Nd5 {[%emt 0:00:32]} Be7 {[%emt 0:00:06]} 10. Bxf6 {[%emt 0:00:40]} Bxf6 {[%emt 0:00:05]} 11. c4 {[%emt 0:00:55]} b4 {[%emt 0:00:05]} 12. Nc2 Rb8 13. b3 {[%emt 0:01:50]} O-O {[%emt 0:00:13]} 14. g3 {[%emt 0:04:30]} Bg5 {[%emt 0:00:05]} 15. Bg2 {[%emt 0:00:18]} Be6 {[%emt 0:01:31]} 16. O-O {[%emt 0:10:44]} Qd7 {[%emt 0:03:27]} 17. Qd3 {[%emt 0:05:52]} a5 {[%emt 0:01:05]} 18. Rad1 {[%emt 0:02:03]} Nd8 {[%emt 0:05:38]} 19. Nde3 {[%emt 0:00:34]} Nb7 {[%emt 0:00:46]} 20. f4 {[%emt 0:01:14]} Nc5 {[%emt 0:07:12]} 21. Qe2 {[%emt 0:00:44]} f5 {[%emt 0:05:08]} 22. exf5 {[%emt 0:02:37]} exf4 {[%emt 0:03:09]} 23. gxf4 {[%emt 0:00:55]} Bxf5 {[%emt 0:01:07]} 24. fxg5 {[%emt 0:01:12]} Rbe8 {[%emt 0:00:09]} 25. Qd2 {[%emt 0:01:13]} Bg4 {[%emt 0:01:03]} 26. Nxg4 {[%emt 0:01:12]} Qxg4 {[%emt 0:00:10]} 27. Qd5+ {[%emt 0:00:27]} Kh8 {[%emt 0:00:08]} 28. Qxd6 {[%emt 0:00:21]} Ne6 {[%emt 0:01:16]} 29. Rxf8+ {[%emt 0:01:33]} Rxf8 {[%emt 0:00:02]} 30. Ne3 {[%emt 0:00:34]} 1-0

[Event "HUN-ch U8-U18 2019"]
[Site "Balatonlelle"]
[Date "2019.06.21"]
[Round "2.8"]
[White "Barsi, Botond"]
[Black "Pasztor, Balazs"]
[Result "0-1"]
[ECO "D02"]
[WhiteElo "1850"]
[BlackElo "2215"]
[Annotator "NA"]
[PlyCount "84"]
[EventDate "2019.06.21"]
[EventType "swiss"]
[EventCountry "HUN"]
[SourceTitle "playchess.com"]
[Source "ChessBase"]
[SourceQuality "1"]
[TimeControl "40/5400+30:1800+30"]

1. d4 {[%emt 0:00:04]} d5 {[%emt 0:00:31]} 2. Nf3 {[%emt 0:00:05]} Nf6 {[%emt 0:00:26]} 3. Bf4 {[%emt 0:00:11]} c5 {[%emt 0:00:42]} 4. c3 {[%emt 0:00:13]} Qb6 {[%emt 0:01:55]} 5. Qc2 {[%emt 0:00:16]} Nc6 {[%emt 0:00:37]} 6. e3 {[%emt 0:00:06]} g6 {[%emt 0:01:22]} 7. Be2 {[%emt 0:01:34]} Bg7 {[%emt 0:01:50]} 8. O-O {[%emt 0:01:59]} O-O {[%emt 0:01:47]} 9. Nbd2 {[%emt 0:01:31]} Nh5 {[%emt 0:04:22]} 10. Bg5 {[%emt 0:01:25]} h6 {[%emt 0:02:47]} 11. Bh4 {[%emt 0:01:12]} Bf5 {[%emt 0:03:31]} 12. Qb3 {[%emt 0:00:22]} g5 {[%emt 0:14:19]} 13. Ne1 {[%emt 0:06:09]} Nf6 {[%emt 0:02:50]} 14. Bg3 {[%emt 0:00:07]} c4 {[%emt 0:02:00]} 15. Qxb6 {[%emt 0:03:45]} axb6 {[%emt 0:00:04]} 16. a3 b5 {[%emt 0:04:14]} 17. Rc1 {[%emt 0:01:21]} Rfe8 {[%emt 0:05:08]} 18. f4 {[%emt 0:03:05]} g4 {[%emt 0:06:13]} 19. Bd1 {[%emt 0:06:44]} Bd3 {[%emt 0:07:51]} 20. Nxd3 {[%emt 0:02:06]} cxd3 {[%emt 0:00:07]} 21. Nb3 {[%emt 0:00:16]} Na5 {[%emt 0:07:05]} 22. Nxa5 {[%emt 0:00:51]} Rxa5 {[%emt 0:00:07]} 23. Rf2 {[%emt 0:00:15]} Ne4 {[%emt 0:01:33]} 24. Rf1 {[%emt 0:02:43]} h5 {[%emt 0:00:35]} 25. Bb3 {[%emt 0:00:30]} Nd2 {[%emt 0:01:43]} 26. Bxd5 {[%emt 0:00:55]} Nxf1 {[%emt 0:00:16]} 27. Kxf1 {[%emt 0:00:26]} b4 {[%emt 0:01:01]} 28. Bxb7 {[%emt 0:07:37]} bxa3 {[%emt 0:02:18]} 29. bxa3 {[%emt 0:00:43]} Rxa3 {[%emt 0:01:26]} 30. Ke1 {[%emt 0:01:45]} Rb8 {[%emt 0:02:26]} 31. Be4 {[%emt 0:01:54]} Rb2 {[%emt 0:03:54]} 32. Bxd3 {[%emt 0:00:50]} Rxg2 {[%emt 0:02:22]} 33. Kf1 {[%emt 0:00:48]} Rb2 {[%emt 0:01:38]} 34. Bc4 {[%emt 0:04:14]} e6 {[%emt 0:02:43]} 35. e4 {[%emt 0:08:54]} h4 {[%emt 0:01:56]} 36. Bxh4 {[%emt 0:05:28]} Rxh2 {[%emt 0:00:09]} 37. Bf2 {[%emt 0:00:03]} Bh6 {[%emt 0:02:09]} 38. Kg1 {[%emt 0:04:16]} Bxf4 {[%emt 0:00:50]} 39. Rb1 {[%emt 0:02:52]} Rxc3 {[%emt 0:00:33]} 40. Bb5 {[%emt 0:00:00]} g3 {[%emt 0:00:00]} 41. Be1 {[%emt 0:02:45]} Be3+ {[%emt 0:00:44]} 42. Kf1 {[%emt 0:00:08]} g2+ {[%emt 0:00:37]} 0-1

[Event "HUN-ch U8-U18 2019"]
[Site "Balatonlelle"]
[Date "2019.06.21"]
[Round "2.9"]
[White "Pasti, Aron"]
[Black "Petervari, Szabolcs"]
[Result "1-0"]
[ECO "B20"]
[WhiteElo "2193"]
[BlackElo "1816"]
[Annotator "NA"]
[PlyCount "59"]
[EventDate "2019.06.21"]
[EventType "swiss"]
[EventCountry "HUN"]
[SourceTitle "playchess.com"]
[Source "ChessBase"]
[SourceQuality "1"]
[TimeControl "40/5400+30:1800+30"]

1. e4 {[%emt 0:00:02]} c5 {[%emt 0:00:09]} 2. c4 {[%emt 0:03:20]} Nc6 {[%emt 0:00:33]} 3. Nc3 {[%emt 0:00:38]} g6 {[%emt 0:01:10]} 4. Nge2 {[%emt 0:00:10]} Bg7 {[%emt 0:00:06]} 5. g3 {[%emt 0:00:20]} Ne5 {[%emt 0:01:46]} 6. Nf4 {[%emt 0:02:58]} d6 {[%emt 0:05:11]} 7. d3 {[%emt 0:02:33]} Bg4 {[%emt 0:01:39]} 8. Be2 {[%emt 0:00:04]} Bxe2 {[%emt 0:00:29]} 9. Qxe2 {[%emt 0:00:04]} Nf6 {[%emt 0:01:36]} 10. O-O {[%emt 0:05:26]} O-O {[%emt 0:00:47]} 11. f3 {[%emt 0:07:31]} Nc6 {[%emt 0:09:30]} 12. Be3 {[%emt 0:00:35]} a6 {[%emt 0:04:41]} 13. Qd2 {[%emt 0:03:17]} e5 {[%emt 0:04:39]} 14. Nfd5 {[%emt 0:02:08]} Nxd5 {[%emt 0:00:13]} 15. Nxd5 {[%emt 0:00:33]} b5 {[%emt 0:03:04]} 16. f4 {[%emt 0:05:54]} exf4 {[%emt 0:04:15]} 17. Bxf4 {[%emt 0:00:35]} bxc4 {[%emt 0:00:33]} 18. dxc4 {[%emt 0:00:15]} Rb8 {[%emt 0:01:07]} 19. Rab1 {[%emt 0:12:33]} Nd4 {[%emt 0:09:21]} 20. g4 {[%emt 0:19:11]} Ne6 {[%emt 0:09:50]} 21. Bg3 {[%emt 0:02:49]} Ng5 {[%emt 0:07:37]} 22. Qg2 {[%emt 0:05:13]} Re8 {[%emt 0:06:11]} 23. Rfe1 {[%emt 0:03:14]} Qa5 {[%emt 0:06:17]} 24. b3 {[%emt 0:01:33]} Be5 {[%emt 0:08:13]} 25. h4 {[%emt 0:01:27]} Bxg3 {[%emt 0:01:26]} 26. Qxg3 {[%emt 0:00:15]} Nxe4 {[%emt 0:02:40]} 27. Rxe4 {[%emt 0:00:48]} Rxe4 {[%emt 0:00:14]} 28. Nf6+ {[%emt 0:00:05]} Kg7 {[%emt 0:00:09]} 29. Nxe4 {[%emt 0:00:06]} Qxa2 {[%emt 0:00:10]} 30. Qc3+ {[%emt 0:01:20]} 1-0

[Event "HUN-ch U8-U18 2019"]
[Site "Balatonlelle"]
[Date "2019.06.22"]
[Round "2.9"]
[White "Ongut, Tamas Gunes"]
[Black "Zsirai, Balint"]
[Result "1-0"]
[ECO "C62"]
[WhiteElo "2120"]
[BlackElo "1342"]
[Annotator "NA"]
[PlyCount "91"]
[EventDate "2019.06.21"]
[EventType "swiss"]
[EventCountry "HUN"]
[SourceTitle "playchess.com"]
[Source "ChessBase"]
[SourceQuality "1"]
[TimeControl "40/5400+30:1800+30"]

1. e4 {[%emt 0:00:04]} e5 {[%emt 0:01:04]} 2. Nf3 {[%emt 0:00:08]} Nc6 {[%emt 0:02:24]} 3. Bb5 {[%emt 0:00:11]} d6 {[%emt 0:01:30]} 4. d4 {[%emt 0:00:17]} exd4 {[%emt 0:00:32]} 5. Nxd4 {[%emt 0:00:17]} Bd7 {[%emt 0:00:26]} 6. O-O {[%emt 0:00:48]} Be7 {[%emt 0:02:03]} 7. Nc3 {[%emt 0:03:04]} Nf6 {[%emt 0:02:06]} 8. Re1 {[%emt 0:03:55]} O-O {[%emt 0:00:35]} 9. Bxc6 {[%emt 0:00:23]} Bxc6 {[%emt 0:00:29]} 10. Nxc6 {[%emt 0:01:56]} bxc6 {[%emt 0:02:23]} 11. Qf3 {[%emt 0:05:12]} Nd7 {[%emt 0:03:15]} 12. Bf4 {[%emt 0:01:27]} Bg5 {[%emt 0:03:36]} 13. Bg3 {[%emt 0:03:46]} Qf6 {[%emt 0:03:10]} 14. Qd3 {[%emt 0:00:44]} Bf4 {[%emt 0:00:47]} 15. Bxf4 {[%emt 0:02:55]} Qxf4 {[%emt 0:00:09]} 16. g3 {[%emt 0:00:04]} Qg4 {[%emt 0:01:18]} 17. f4 {[%emt 0:01:20]} g5 {[%emt 0:02:22]} 18. Rf1 {[%emt 0:02:34]} gxf4 {[%emt 0:04:56]} 19. Rxf4 {[%emt 0:00:03]} Qh5 {[%emt 0:01:24]} 20. Rf5 {[%emt 0:03:08]} Qh6 {[%emt 0:01:05]} 21. Raf1 {[%emt 0:01:33]} Ne5 {[%emt 0:00:28]} 22. Qe2 {[%emt 0:00:26]} Kh8 {[%emt 0:03:22]} 23. Nd1 {[%emt 0:10:37]} Rg8 {[%emt 0:03:17]} 24. Ne3 {[%emt 0:00:40]} Raf8 {[%emt 0:01:14]} 25. Rh5 {[%emt 0:00:49]} Qg6 {[%emt 0:01:07]} 26. Rf4 {[%emt 0:01:10]} Nd7 {[%emt 0:11:03]} 27. Rfh4 {[%emt 0:06:13]} Nf6 {[%emt 0:01:04]} 28. Rh6 {[%emt 0:00:27]} Qg5 {[%emt 0:02:12]} 29. Nf5 {[%emt 0:08:24]} Rg6 {[%emt 0:01:38]} 30. Qe1 {[%emt 0:03:40]} Rxh6 {[%emt 0:02:49]} 31. Rxh6 {[%emt 0:00:16]} Ng4 {[%emt 0:07:33]} 32. Rh4 {[%emt 0:04:08]} Re8 {[%emt 0:05:35]} 33. Qc3+ {[%emt 0:01:08]} Ne5 {[%emt 0:04:28]} 34. Rf4 {[%emt 0:01:06]} f6 {[%emt 0:04:37]} 35. Rf1 {[%emt 0:03:16]} h5 {[%emt 0:02:38]} 36. Qa5 {[%emt 0:00:59]} h4 {[%emt 0:01:15]} 37. Qxc7 {[%emt 0:00:53]} hxg3 {[%emt 0:00:31]} 38. hxg3 {[%emt 0:00:08]} Qg4 {[%emt 0:08:33]} 39. Qxd6 {[%emt 0:00:33]} Qg5 40. Rf4 {[%emt 0:00:00]} Ng6 {[%emt 0:00:00]} 41. Rg4 {[%emt 0:05:45]} Qc1+ {[%emt 0:08:40]} 42. Kg2 {[%emt 0:00:03]} Qxc2+ {[%emt 0:00:13]} 43. Kh3 {[%emt 0:00:05]} Qxb2 {[%emt 0:04:12]} 44. Rxg6 {[%emt 0:00:16]} Qe5 {[%emt 0:00:37]} 45. Qd7 {[%emt 0:01:03]} Re7 {[%emt 0:00:59]} 46. Qxe7 {[%emt 0:00:51]} 1-0

[Event "HUN-ch U8-U18 2019"]
[Site "Balatonlelle"]
[Date "2019.06.22"]
[Round "2.10"]
[White "Tapodi, Norman Lajos"]
[Black "Baski, Barnabas"]
[Result "0-1"]
[ECO "E32"]
[WhiteElo "2043"]
[BlackElo "2108"]
[Annotator "NA"]
[PlyCount "104"]
[EventDate "2019.06.21"]
[EventType "swiss"]
[EventCountry "HUN"]
[SourceTitle "playchess.com"]
[Source "ChessBase"]
[SourceQuality "1"]
[TimeControl "40/5400+30:1800+30"]

1. d4 {[%emt 0:00:04]} e6 {[%emt 0:00:53]} 2. c4 {[%emt 0:00:33]} Nf6 {[%emt 0:00:14]} 3. Nc3 {[%emt 0:00:33]} Bb4 {[%emt 0:00:22]} 4. Qc2 {[%emt 0:00:43]} b6 {[%emt 0:00:21]} 5. a3 {[%emt 0:02:20]} Bxc3+ {[%emt 0:01:17]} 6. Qxc3 {[%emt 0:00:18]} Bb7 {[%emt 0:02:26]} 7. Bg5 {[%emt 0:03:28]} h6 {[%emt 0:04:14]} 8. Bxf6 {[%emt 0:02:04]} Qxf6 {[%emt 0:00:19]} 9. Nf3 {[%emt 0:04:09]} d6 {[%emt 0:05:30]} 10. Rd1 {[%emt 0:07:41]} Nd7 {[%emt 0:04:11]} 11. g3 {[%emt 0:06:14]} O-O {[%emt 0:09:15]} 12. Bg2 {[%emt 0:03:45]} e5 {[%emt 0:05:28]} 13. d5 {[%emt 0:11:43]} a5 {[%emt 0:04:04]} 14. O-O {[%emt 0:12:07]} a4 {[%emt 0:09:18]} 15. e4 {[%emt 0:04:20]} Nc5 {[%emt 0:06:10]} 16. Nh4 {[%emt 0:03:59]} Bc8 {[%emt 0:14:06]} 17. f4 {[%emt 0:07:59]} Bd7 {[%emt 0:08:14]} 18. Nf5 {[%emt 0:09:55]} Rae8 {[%emt 0:05:01]} 19. Rde1 {[%emt 0:04:40]} Bxf5 {[%emt 0:02:47]} 20. exf5 {[%emt 0:00:37]} exf4 {[%emt 0:01:28]} 21. Qxf6 {[%emt 0:07:29]} gxf6 {[%emt 0:00:01]} 22. Rxe8 {[%emt 0:02:53]} Rxe8 {[%emt 0:00:03]} 23. Rxf4 {[%emt 0:01:10]} Nd3 {[%emt 0:07:44]} 24. Rd4 {[%emt 0:00:57]} Re1+ {[%emt 0:01:36]} 25. Bf1 {[%emt 0:00:09]} Ne5 {[%emt 0:00:29]} 26. Kf2 {[%emt 0:00:39]} Rb1 {[%emt 0:01:14]} 27. Rd2 {[%emt 0:00:43]} Rc1 {[%emt 0:00:43]} 28. Be2 {[%emt 0:00:45]} Nxc4 {[%emt 0:01:00]} 29. Bxc4 {[%emt 0:00:12]} Rxc4 {[%emt 0:00:03]} 30. Ke3 {[%emt 0:00:09]} b5 {[%emt 0:02:58]} 31. Kd3 {[%emt 0:01:18]} Kf8 {[%emt 0:01:00]} 32. Re2 {[%emt 0:01:10]} Rc5 {[%emt 0:00:57]} 33. Kd4 {[%emt 0:00:02]} Rc4+ {[%emt 0:00:08]} 34. Kd3 {[%emt 0:00:04]} c5 {[%emt 0:01:55]} 35. dxc6 {[%emt 0:00:32]} Rxc6 {[%emt 0:00:01]} 36. Re4 {[%emt 0:00:33]} Rc5 {[%emt 0:00:55]} 37. g4 {[%emt 0:00:19]} Re5 {[%emt 0:00:45]} 38. Rd4 {[%emt 0:00:31]} Ke7 {[%emt 0:00:26]} 39. Kd2 {[%emt 0:00:02]} Kd7 {[%emt 0:00:34]} 40. Rd3 {[%emt 0:00:00]} Re4 {[%emt 0:00:00]} 41. h3 {[%emt 0:03:31]} h5 {[%emt 0:09:44]} 42. Rg3 {[%emt 0:06:12]} hxg4 {[%emt 0:00:32]} 43. hxg4 {[%emt 0:00:07]} d5 {[%emt 0:01:23]} 44. g5 {[%emt 0:03:42]} fxg5 {[%emt 0:00:47]} 45. Rxg5 {[%emt 0:00:07]} b4 {[%emt 0:02:28]} 46. Rh5 {[%emt 0:05:47]} bxa3 {[%emt 0:02:14]} 47. bxa3 {[%emt 0:00:07]} Kd6 {[%emt 0:02:23]} 48. Kc3 {[%emt 0:06:58]} f6 {[%emt 0:01:38]} 49. Rh8 {[%emt 0:00:30]} Ke5 {[%emt 0:01:05]} 50. Rd8 {[%emt 0:00:59]} Rf4 {[%emt 0:00:36]} 51. Rd7 {[%emt 0:02:03]} Rxf5 {[%emt 0:00:59]} 52. Kb4 {[%emt 0:00:16]} Rf4+ {[%emt 0:00:16]} 0-1

[Event "HUN-ch U8-U18 2019"]
[Site "Balatonlelle"]
[Date "2019.06.21"]
[Round "2.10"]
[White "Gyenes, Mate"]
[Black "Juhasz, Agoston"]
[Result "0-1"]
[ECO "A45"]
[WhiteElo "1823"]
[BlackElo "2161"]
[Annotator "NA"]
[PlyCount "40"]
[EventDate "2019.06.21"]
[EventType "swiss"]
[EventCountry "HUN"]
[SourceTitle "playchess.com"]
[Source "ChessBase"]
[SourceQuality "1"]
[TimeControl "40/5400+30:1800+30"]

1. d4 {[%emt 0:00:02]} Nf6 {[%emt 0:00:19]} 2. Bf4 {[%emt 0:00:06]} d5 {[%emt 0:00:13]} 3. e3 {[%emt 0:00:06]} c5 {[%emt 0:00:08]} 4. c3 {[%emt 0:00:05]} Nc6 {[%emt 0:00:11]} 5. Nf3 {[%emt 0:00:05]} Qb6 {[%emt 0:00:36]} 6. Qb3 {[%emt 0:00:08]} c4 {[%emt 0:00:13]} 7. Qxb6 {[%emt 0:00:06]} axb6 {[%emt 0:00:05]} 8. Na3 {[%emt 0:00:11]} Bf5 {[%emt 0:02:55]} 9. Nb5 {[%emt 0:00:09]} Ra5 {[%emt 0:00:38]} 10. a4 {[%emt 0:00:09]} e6 {[%emt 0:12:20]} 11. Be2 {[%emt 0:00:11]} Bc2 {[%emt 0:03:47]} 12. Nc7+ {[%emt 0:00:34]} Kd7 {[%emt 0:04:02]} 13. Ne5+ {[%emt 0:06:45]} Nxe5 {[%emt 0:02:35]} 14. Bxe5 {[%emt 0:02:07]} Bxa4 {[%emt 0:03:33]} 15. Bd1 {[%emt 0:01:47]} Bxd1 {[%emt 0:04:36]} 16. Rxa5 {[%emt 0:00:08]} bxa5 {[%emt 0:00:06]} 17. Kxd1 {[%emt 0:00:14]} Ng4 {[%emt 0:00:40]} 18. Bg3 {[%emt 0:02:13]} Bd6 {[%emt 0:00:40]} 19. Bxd6 {[%emt 0:01:45]} Kxd6 {[%emt 0:00:26]} 20. Nb5+ {[%emt 0:00:06]} Kc6 {[%emt 0:00:11]} 0-1

[Event "HUN-ch U8-U18 2019"]
[Site "Balatonlelle"]
[Date "2019.06.22"]
[Round "2.11"]
[White "Fule, Simon"]
[Black "Kresz, Tamas"]
[Result "1/2-1/2"]
[ECO "C18"]
[WhiteElo "2148"]
[BlackElo "1766"]
[Annotator "NA"]
[PlyCount "89"]
[EventDate "2019.06.21"]
[EventType "swiss"]
[EventCountry "HUN"]
[SourceTitle "playchess.com"]
[Source "ChessBase"]
[SourceQuality "1"]
[TimeControl "40/5400+30:1800+30"]

1. e4 {[%emt 0:00:03]} e6 {[%emt 0:00:06]} 2. d4 {[%emt 0:00:04]} d5 {[%emt 0:00:05]} 3. Nc3 {[%emt 0:00:05]} Bb4 {[%emt 0:00:05]} 4. e5 {[%emt 0:00:06]} c5 {[%emt 0:00:06]} 5. a3 {[%emt 0:00:04]} Bxc3+ {[%emt 0:00:06]} 6. bxc3 {[%emt 0:00:07]} Qa5 {[%emt 0:00:07]} 7. Bd2 {[%emt 0:00:38]} Ne7 {[%emt 0:00:13]} 8. Qg4 {[%emt 0:03:22]} O-O {[%emt 0:00:13]} 9. Nf3 {[%emt 0:02:18]} Nbc6 {[%emt 0:02:21]} 10. Bd3 {[%emt 0:10:28]} f5 {[%emt 0:17:40]} 11. exf6 {[%emt 0:26:11]} Rxf6 {[%emt 0:00:13]} 12. Qh5 Nf5 {[%emt 0:05:29]} 13. O-O {[%emt 0:17:14]} c4 {[%emt 0:17:48]} 14. Bxf5 {[%emt 0:01:36]} Rxf5 {[%emt 0:00:30]} 15. Qe8+ {[%emt 0:03:26]} Rf8 {[%emt 0:00:14]} 16. Qh5 {[%emt 0:00:02]} Rf5 {[%emt 0:08:21]} 17. Qh4 {[%emt 0:03:48]} Bd7 {[%emt 0:03:40]} 18. Qg3 {[%emt 0:04:26]} Raf8 {[%emt 0:09:56]} 19. Rfe1 {[%emt 0:04:27]} Qd8 {[%emt 0:13:59]} 20. Re2 {[%emt 0:04:09]} Qf6 {[%emt 0:03:03]} 21. Rae1 {[%emt 0:01:44]} h6 {[%emt 0:02:24]} 22. Nh4 {[%emt 0:06:53]} Rh5 {[%emt 0:00:11]} 23. Ng6 {[%emt 0:00:26]} Re8 {[%emt 0:02:29]} 24. Nf4 {[%emt 0:03:48]} Rg5 {[%emt 0:04:26]} 25. Qf3 {[%emt 0:01:19]} Rf8 {[%emt 0:02:59]} 26. g3 {[%emt 0:02:56]} Kh8 {[%emt 0:03:12]} 27. Qg2 {[%emt 0:00:51]} Rf5 {[%emt 0:01:40]} 28. f3 {[%emt 0:01:36]} Re8 {[%emt 0:01:28]} 29. h4 {[%emt 0:01:02]} Qf7 {[%emt 0:00:28]} 30. h5 {[%emt 0:00:27]} Kg8 {[%emt 0:00:40]} 31. Re3 {[%emt 0:01:14]} e5 {[%emt 0:00:27]} 32. dxe5 {[%emt 0:00:04]} Rfxe5 {[%emt 0:00:32]} 33. Qf2 {[%emt 0:00:17]} Bf5 {[%emt 0:00:38]} 34. Bc1 {[%emt 0:00:26]} Bd7 {[%emt 0:00:23]} 35. g4 {[%emt 0:00:38]} Bc8 {[%emt 0:00:33]} 36. Ng6 {[%emt 0:00:22]} Rxe3 {[%emt 0:00:30]} 37. Rxe3 {[%emt 0:00:35]} Rxe3 {[%emt 0:00:18]} 38. Qxe3 {[%emt 0:00:05]} Qe6 {[%emt 0:00:27]} 39. Qf4 {[%emt 0:01:00]} Qe1+ {[%emt 0:00:44]} 40. Kg2 {[%emt 0:00:00]} Qe2+ {[%emt 0:00:00]} 41. Kg3 {[%emt 0:01:20]} Qe1+ {[%emt 0:03:16]} 42. Kg2 {[%emt 0:00:08]} Qe2+ {[%emt 0:00:30]} 43. Kh3 {[%emt 0:00:09]} Qf1+ {[%emt 0:03:13]} 44. Kh2 {[%emt 0:00:04]} Qf2+ {[%emt 0:00:25]} 45. Kh1 {[%emt 0:00:08]} 1/2-1/2

[Event "HUN-ch U8-U18 2019"]
[Site "Balatonlelle"]
[Date "2019.06.22"]
[Round "2.11"]
[White "Kovacsy, Barnabas"]
[Black "Palczert, Botond"]
[Result "0-1"]
[ECO "B94"]
[WhiteElo "2136"]
[BlackElo "2068"]
[Annotator "NA"]
[PlyCount "70"]
[EventDate "2019.06.21"]
[EventType "swiss"]
[EventCountry "HUN"]
[SourceTitle "playchess.com"]
[Source "ChessBase"]
[SourceQuality "1"]
[TimeControl "40/5400+30:1800+30"]

1. e4 {[%emt 0:00:05]} c5 {[%emt 0:01:16]} 2. Nf3 {[%emt 0:00:08]} d6 {[%emt 0:00:08]} 3. d4 {[%emt 0:00:03]} cxd4 {[%emt 0:00:10]} 4. Nxd4 {[%emt 0:00:04]} Nf6 {[%emt 0:00:13]} 5. Nc3 {[%emt 0:00:06]} a6 {[%emt 0:00:09]} 6. Bg5 {[%emt 0:00:41]} Nbd7 {[%emt 0:00:20]} 7. Qe2 {[%emt 0:00:10]} h6 {[%emt 0:00:22]} 8. Bh4 {[%emt 0:07:48]} g6 {[%emt 0:00:21]} 9. O-O-O {[%emt 0:01:43]} e5 {[%emt 0:00:32]} 10. Nb3 {[%emt 0:01:56]} b5 {[%emt 0:01:19]} 11. f3 {[%emt 0:10:15]} Qc7 {[%emt 0:01:53]} 12. Bf2 {[%emt 0:06:49]} Nb6 {[%emt 0:01:38]} 13. Kb1 {[%emt 0:15:55]} Be6 {[%emt 0:04:58]} 14. g3 {[%emt 0:09:28]} Rc8 {[%emt 0:03:27]} 15. Bxb6 {[%emt 0:05:13]} Qxb6 {[%emt 0:00:12]} 16. Qd2 {[%emt 0:00:07]} b4 {[%emt 0:13:59]} 17. Nd5 {[%emt 0:01:35]} Bxd5 {[%emt 0:15:24]} 18. exd5 {[%emt 0:00:44]} a5 {[%emt 0:01:34]} 19. Qe2 {[%emt 0:07:36]} Bg7 {[%emt 0:03:48]} 20. Bh3 {[%emt 0:04:53]} Rc7 {[%emt 0:01:53]} 21. f4 {[%emt 0:01:17]} O-O {[%emt 0:02:39]} 22. fxe5 {[%emt 0:01:29]} dxe5 {[%emt 0:01:42]} 23. d6 {[%emt 0:03:26]} Rc6 {[%emt 0:12:54]} 24. Qxe5 {[%emt 0:01:50]} a4 {[%emt 0:03:47]} 25. Nc1 {[%emt 0:07:37]} Ng4 {[%emt 0:10:56]} 26. Qf4 {[%emt 0:08:01]} Ne3 {[%emt 0:05:30]} 27. Nd3 {[%emt 0:03:03]} Nxd1 {[%emt 0:01:29]} 28. Rxd1 {[%emt 0:00:26]} Rxd6 {[%emt 0:00:21]} 29. Bg4 {[%emt 0:01:26]} Rd4 {[%emt 0:01:42]} 30. Qe3 {[%emt 0:00:32]} Qf6 {[%emt 0:00:07]} 31. c3 {[%emt 0:00:32]} bxc3 {[%emt 0:00:57]} 32. Nf2 {[%emt 0:00:29]} Rxg4 {[%emt 0:02:45]} 33. Nxg4 {[%emt 0:00:12]} c2+ {[%emt 0:00:27]} 34. Kxc2 {[%emt 0:00:05]} Qxb2+ {[%emt 0:00:06]} 35. Kd3 {[%emt 0:00:19]} Rd8+ {[%emt 0:00:10] Kd4} 0-1